[Event "*** Titled Tuesday Blitz"]
[Site "Chess.com"]
[Date "2019.05.07"]
[Round "1"]
[White "Cocaino74"]
[Black "Doraemon7"]
[Result "0-1"]
[WhiteElo "2283"]
[BlackElo "2602"]
[TimeControl "180+2"]
[EndTime "13:07:19 PDT"]
[Termination "Doraemon7 won by resignation"]

1. d4 {[%clk 0:03:01.9]} 1... Nf6 {[%clk 0:02:58.3]} 2. Nf3 {[%clk 0:03:03.2]}
2... d5 {[%clk 0:02:58.5]} 3. Bg5 {[%clk 0:03:00]} 3... Ne4 {[%clk 0:02:53.1]}
4. Bh4 {[%clk 0:02:50.5]} 4... c6 {[%clk 0:02:50.4]} 5. e3 {[%clk 0:02:51.3]}
5... Qb6 {[%clk 0:02:51.2]} 6. Qc1 {[%clk 0:02:40.2]} 6... f6 {[%clk 0:02:45.5]}
7. Bd3 {[%clk 0:02:35.9]} 7... Bg4 {[%clk 0:02:40.3]} 8. Bxe4 {[%clk 0:02:31.1]}
8... dxe4 {[%clk 0:02:41.5]} 9. Nfd2 {[%clk 0:02:32.1]} 9... Bf5 {[%clk
0:02:31.4]} 10. Nc3 {[%clk 0:02:31]} 10... Nd7 {[%clk 0:02:27.9]} 11. O-O {[%clk
0:02:11.6]} 11... e5 {[%clk 0:02:29]} 12. dxe5 {[%clk 0:02:05.6]} 12... Nxe5
{[%clk 0:02:30.9]} 13. Bg3 {[%clk 0:02:03.6]} 13... O-O-O {[%clk 0:02:21.7]} 14.
Bxe5 {[%clk 0:01:49.9]} 14... fxe5 {[%clk 0:02:23.6]} 15. Ndxe4 {[%clk
0:01:51.3]} 15... Qb4 {[%clk 0:02:14]} 16. a3 {[%clk 0:01:47.8]} 16... Qc4
{[%clk 0:02:15]} 17. b3 {[%clk 0:01:44.6]} 17... Qe6 {[%clk 0:02:15.6]} 18. Rd1
{[%clk 0:01:21.6]} 18... Be7 {[%clk 0:02:04.6]} 19. Rxd8+ {[%clk 0:01:21.8]}
19... Rxd8 {[%clk 0:02:06.5]} 20. Qf1 {[%clk 0:01:18.8]} 20... Qg6 {[%clk
0:02:06]} 21. f3 {[%clk 0:01:15.9]} 21... h5 {[%clk 0:01:43.9]} 22. Rd1 {[%clk
0:01:08.4]} 22... Rxd1 {[%clk 0:01:44.7]} 23. Qxd1 {[%clk 0:01:10.3]} 23... Bxa3
{[%clk 0:01:45.5]} 24. Qa1 {[%clk 0:01:10]} 24... Bb4 {[%clk 0:01:38.9]} 25.
Qxa7 {[%clk 0:01:10.1]} 25... Bxc3 {[%clk 0:01:28.7]} 26. Qa8+ {[%clk
0:00:49.5]} 26... Kc7 {[%clk 0:01:27.3]} 27. Nxc3 {[%clk 0:00:50.8]} 27... Bh3
{[%clk 0:01:22.8]} 28. Qa5+ {[%clk 0:00:50.1]} 28... Kc8 {[%clk 0:01:22.6]} 29.
Qa8+ {[%clk 0:00:38.6]} 29... Kc7 {[%clk 0:01:23.8]} 30. Qa5+ {[%clk 0:00:33.7]}
30... Kd7 {[%clk 0:01:23.5]} 31. g3 {[%clk 0:00:15.1]} 31... Qxc2 {[%clk
0:01:24]} 0-1

[Event "*** Titled Tuesday Blitz"]
[Site "Chess.com"]
[Date "2019.05.07"]
[Round "1"]
[White "BlueWizzard"]
[Black "Caterpiller35"]
[Result "1-0"]
[WhiteElo "2767"]
[BlackElo "2408"]
[TimeControl "180+2"]
[EndTime "13:07:29 PDT"]
[Termination "BlueWizzard won on time"]

1. e4 {[%clk 0:03:01.9]} 1... c5 {[%clk 0:02:52.8]} 2. Nc3 {[%clk 0:03:03.3]}
2... Nc6 {[%clk 0:02:51.5]} 3. Nf3 {[%clk 0:03:05.2]} 3... g6 {[%clk 0:02:51.6]}
4. d4 {[%clk 0:03:03.6]} 4... cxd4 {[%clk 0:02:53.5]} 5. Nxd4 {[%clk 0:03:04.8]}
5... Bg7 {[%clk 0:02:54.6]} 6. Be3 {[%clk 0:03:06.4]} 6... Nf6 {[%clk
0:02:54.8]} 7. h3 {[%clk 0:03:07.9]} 7... O-O {[%clk 0:02:55.1]} 8. Bc4 {[%clk
0:03:09.5]} 8... a6 {[%clk 0:02:55.6]} 9. Bb3 {[%clk 0:03:04.3]} 9... b5 {[%clk
0:02:51.8]} 10. O-O {[%clk 0:02:51]} 10... Bb7 {[%clk 0:02:51.1]} 11. Re1 {[%clk
0:02:49.9]} 11... d6 {[%clk 0:02:51.2]} 12. a3 {[%clk 0:02:50.1]} 12... Rc8
{[%clk 0:02:51.7]} 13. f4 {[%clk 0:02:50.3]} 13... e5 {[%clk 0:02:46.4]} 14. Nf3
{[%clk 0:02:49.5]} 14... Nh5 {[%clk 0:02:25.4]} 15. f5 {[%clk 0:02:46.5]} 15...
Nf4 {[%clk 0:01:46.5]} 16. Qd2 {[%clk 0:02:43.4]} 16... gxf5 {[%clk 0:01:25.2]}
17. exf5 {[%clk 0:02:27.1]} 17... Nd4 {[%clk 0:01:13.4]} 18. Bxd4 {[%clk
0:01:44.4]} 18... Bxf3 {[%clk 0:01:08.1]} 19. gxf3 {[%clk 0:01:38.4]} 19... Qg5+
{[%clk 0:01:00]} 20. Kh1 {[%clk 0:01:24.6]} 20... exd4 {[%clk 0:01:00.9]} 21.
Nd5 {[%clk 0:00:57.6]} 21... Nxh3 {[%clk 0:00:29.9]} 22. Qxg5 {[%clk 0:00:57.9]}
22... Nxg5 {[%clk 0:00:31.8]} 23. f6 {[%clk 0:00:59.2]} 23... Bh6 {[%clk
0:00:23.3]} 24. f4 {[%clk 0:00:52.9]} 24... Ne6 {[%clk 0:00:21.9]} 25. Ne7+
{[%clk 0:00:52.9]} 25... Kh8 {[%clk 0:00:14]} 26. Nxc8 {[%clk 0:00:54.8]} 26...
Rxc8 {[%clk 0:00:13.2]} 27. f5 {[%clk 0:00:49.8]} 27... Ng5 {[%clk 0:00:03.6]}
28. Re2 {[%clk 0:00:46.8]} 1-0

[Event "*** Titled Tuesday Blitz"]
[Site "Chess.com"]
[Date "2019.05.07"]
[Round "1"]
[White "Keithonsky"]
[Black "ChessQueen"]
[Result "1-0"]
[WhiteElo "2358"]
[BlackElo "2645"]
[TimeControl "180+2"]
[EndTime "13:07:30 PDT"]
[Termination "Keithonsky won by resignation"]

1. d4 {[%clk 0:03:01.9]} 1... Nf6 {[%clk 0:03:00.7]} 2. c4 {[%clk 0:03:03]} 2...
e6 {[%clk 0:03:01.6]} 3. Nf3 {[%clk 0:03:04.4]} 3... b6 {[%clk 0:03:01]} 4. g3
{[%clk 0:03:05.1]} 4... Bb7 {[%clk 0:03:01.9]} 5. Bg2 {[%clk 0:03:05.7]} 5...
Be7 {[%clk 0:03:03.1]} 6. O-O {[%clk 0:03:06]} 6... O-O {[%clk 0:03:04.3]} 7.
Nc3 {[%clk 0:03:07.6]} 7... Ne4 {[%clk 0:03:02.4]} 8. Qc2 {[%clk 0:03:08]} 8...
Nxc3 {[%clk 0:02:59.1]} 9. Qxc3 {[%clk 0:03:09.9]} 9... Be4 {[%clk 0:02:59.7]}
10. Rd1 {[%clk 0:03:09]} 10... d5 {[%clk 0:02:57.1]} 11. Ne1 {[%clk 0:03:09.4]}
11... Bxg2 {[%clk 0:02:56]} 12. Nxg2 {[%clk 0:03:11.3]} 12... Nd7 {[%clk
0:02:54]} 13. cxd5 {[%clk 0:03:08.2]} 13... exd5 {[%clk 0:02:52.7]} 14. Qc6
{[%clk 0:03:08.1]} 14... Nf6 {[%clk 0:02:36.7]} 15. Bf4 {[%clk 0:03:07.9]} 15...
Rc8 {[%clk 0:02:21]} 16. Rac1 {[%clk 0:03:06.7]} 16... Bd6 {[%clk 0:02:07.2]}
17. Bxd6 {[%clk 0:02:54.8]} 17... Qxd6 {[%clk 0:02:08.1]} 18. Qxd6 {[%clk
0:02:55.2]} 18... cxd6 {[%clk 0:02:10]} 19. Ne3 {[%clk 0:02:55.2]} 19... g6
{[%clk 0:02:08.5]} 20. f3 {[%clk 0:02:49.6]} 20... Rfe8 {[%clk 0:02:09.5]} 21.
Kf2 {[%clk 0:02:50.6]} 21... Kf8 {[%clk 0:02:10.4]} 22. g4 {[%clk 0:02:48.9]}
22... h6 {[%clk 0:01:58.3]} 23. h4 {[%clk 0:02:47.8]} 23... g5 {[%clk
0:01:53.4]} 24. h5 {[%clk 0:02:45.5]} 24... Red8 {[%clk 0:01:50.3]} 25. Nf5
{[%clk 0:02:45.6]} 25... Ng8 {[%clk 0:01:51]} 26. Ke3 {[%clk 0:02:39.1]} 26...
Ne7 {[%clk 0:01:50.5]} 27. Ng3 {[%clk 0:02:22.9]} 27... Kg7 {[%clk 0:01:46.4]}
28. Kd3 {[%clk 0:02:22.4]} 28... Kf6 {[%clk 0:01:44.1]} 29. e4 {[%clk
0:02:22.6]} 29... dxe4+ {[%clk 0:01:40.1]} 30. fxe4 {[%clk 0:02:23.6]} 30... Ke6
{[%clk 0:01:33.4]} 31. Rf1 {[%clk 0:02:15.5]} 31... f6 {[%clk 0:01:34.1]} 32.
Rc3 {[%clk 0:02:13.5]} 32... Rxc3+ {[%clk 0:01:32.8]} 33. bxc3 {[%clk
0:02:15.1]} 33... d5 {[%clk 0:01:34.2]} 34. exd5+ {[%clk 0:02:14.5]} 34... Nxd5
{[%clk 0:01:35]} 35. Nf5 {[%clk 0:02:12.9]} 35... Rc8 {[%clk 0:01:29.3]} 36.
Re1+ {[%clk 0:02:11.5]} 36... Kd7 {[%clk 0:01:30.3]} 37. c4 {[%clk 0:02:09]}
37... Nf4+ {[%clk 0:01:31.1]} 38. Kc3 {[%clk 0:02:10.1]} 38... b5 {[%clk
0:00:51.4]} 39. c5 {[%clk 0:02:04.7]} 39... Nd5+ {[%clk 0:00:45.8]} 40. Kb3
{[%clk 0:02:05.9]} 40... a5 {[%clk 0:00:45.9]} 41. Nxh6 {[%clk 0:02:04.5]} 41...
a4+ {[%clk 0:00:47.3]} 42. Kb2 {[%clk 0:01:57.8]} 42... Nb4 {[%clk 0:00:44.1]}
43. Re3 {[%clk 0:01:54.7]} 43... Nd5 {[%clk 0:00:44.8]} 44. Re2 {[%clk
0:01:53.5]} 44... Nf4 {[%clk 0:00:45.3]} 45. Re4 {[%clk 0:01:53.6]} 45... Ne6
{[%clk 0:00:44.8]} 46. Nf5 {[%clk 0:01:51.7]} 46... b4 {[%clk 0:00:43.7]} 47.
c6+ {[%clk 0:01:43]} 47... Rxc6 {[%clk 0:00:38.2]} 48. d5 {[%clk 0:01:43.7]}
48... a3+ {[%clk 0:00:39.7]} 49. Kb1 {[%clk 0:01:44]} 1-0

[Event "*** Titled Tuesday Blitz"]
[Site "Chess.com"]
[Date "2019.05.07"]
[Round "1"]
[White "BasilSmash"]
[Black "penguingm1"]
[Result "0-1"]
[WhiteElo "2489"]
[BlackElo "2906"]
[TimeControl "180+2"]
[EndTime "13:07:32 PDT"]
[Termination "penguingm1 won on time"]

1. e4 {[%clk 0:02:58.1]} 1... e5 {[%clk 0:02:59.9]} 2. Nf3 {[%clk 0:02:59]} 2...
Nc6 {[%clk 0:02:59.9]} 3. Bb5 {[%clk 0:02:59.6]} 3... a6 {[%clk 0:03:01.3]} 4.
Bxc6 {[%clk 0:03:00.8]} 4... dxc6 {[%clk 0:03:01.8]} 5. O-O {[%clk 0:03:02.7]}
5... Bd6 {[%clk 0:03:02.7]} 6. d4 {[%clk 0:03:02.2]} 6... exd4 {[%clk
0:03:04.6]} 7. Qxd4 {[%clk 0:03:03.4]} 7... f6 {[%clk 0:03:06.1]} 8. Be3 {[%clk
0:03:03.8]} 8... Ne7 {[%clk 0:03:06.9]} 9. Nbd2 {[%clk 0:03:04.6]} 9... Be6
{[%clk 0:03:08.2]} 10. Rad1 {[%clk 0:02:58.2]} 10... Ng6 {[%clk 0:03:01.7]} 11.
Nc4 {[%clk 0:02:54.9]} 11... Bxc4 {[%clk 0:02:39.1]} 12. Qxc4 {[%clk 0:02:56.8]}
12... Qe7 {[%clk 0:02:40.4]} 13. Nd4 {[%clk 0:02:30.2]} 13... Qxe4 {[%clk
0:02:26.3]} 14. Rfe1 {[%clk 0:02:27.4]} 14... O-O-O {[%clk 0:02:25.4]} 15. g3
{[%clk 0:01:40.4]} 15... Rhe8 {[%clk 0:01:43.7]} 16. Qc3 {[%clk 0:01:33.2]}
16... Ne5 {[%clk 0:01:36.9]} 17. Bf4 {[%clk 0:01:26.7]} 17... Qd5 {[%clk
0:01:18.9]} 18. Qb3 {[%clk 0:00:30.8]} 18... Qxb3 {[%clk 0:00:50.9]} 19. axb3
{[%clk 0:00:32.4]} 19... Bb4 {[%clk 0:00:52.4]} 20. c3 {[%clk 0:00:28.4]} 20...
Rxd4 {[%clk 0:00:51.2]} 21. Rxd4 {[%clk 0:00:14.1]} 21... Nf3+ {[%clk
0:00:49.4]} 22. Kg2 {[%clk 0:00:07.2]} 22... Nxe1+ {[%clk 0:00:47.1]} 23. Kf1
{[%clk 0:00:08.4]} 23... Bc5 {[%clk 0:00:33.9]} 24. Rc4 {[%clk 0:00:06.6]} 24...
Bb6 {[%clk 0:00:34]} 0-1

[Event "*** Titled Tuesday Blitz"]
[Site "Chess.com"]
[Date "2019.05.07"]
[Round "1"]
[White "ZuchBolt"]
[Black "Alopekos"]
[Result "0-1"]
[WhiteElo "2258"]
[BlackElo "2581"]
[TimeControl "180+2"]
[EndTime "13:07:32 PDT"]
[Termination "Alopekos won by resignation"]

1. d4 {[%clk 0:02:51.1]} 1... Nf6 {[%clk 0:03:00.5]} 2. c4 {[%clk 0:02:51.7]}
2... e6 {[%clk 0:02:56.9]} 3. g3 {[%clk 0:02:52.6]} 3... d5 {[%clk 0:02:56.7]}
4. Bg2 {[%clk 0:02:53.4]} 4... Be7 {[%clk 0:02:57.6]} 5. Nf3 {[%clk 0:02:48.2]}
5... O-O {[%clk 0:02:59.1]} 6. O-O {[%clk 0:02:46.6]} 6... dxc4 {[%clk
0:03:00.3]} 7. Qc2 {[%clk 0:02:46.6]} 7... b5 {[%clk 0:03:00.6]} 8. Ne5 {[%clk
0:02:44.6]} 8... Qxd4 {[%clk 0:03:00.9]} 9. Bxa8 {[%clk 0:02:41.4]} 9... Qxe5
{[%clk 0:03:02]} 10. Bf4 {[%clk 0:02:40.7]} 10... Qh5 {[%clk 0:03:02.6]} 11. Bg2
{[%clk 0:02:38.5]} 11... e5 {[%clk 0:02:57.7]} 12. Bc1 {[%clk 0:02:24.1]} 12...
Ng4 {[%clk 0:00:59.3]} 13. h3 {[%clk 0:02:22.9]} 13... Nf6 {[%clk 0:00:59.2]}
14. Kh2 {[%clk 0:02:13.8]} 14... Nc6 {[%clk 0:00:49.6]} 15. e3 {[%clk
0:02:02.7]} 15... Nb4 {[%clk 0:00:25.7]} 16. Qc3 {[%clk 0:01:35.1]} 16... Nd3
{[%clk 0:00:24.6]} 17. a4 {[%clk 0:01:29]} 17... a6 {[%clk 0:00:23.6]} 18. axb5
{[%clk 0:01:29.7]} 18... axb5 {[%clk 0:00:25.5]} 19. Ra8 {[%clk 0:01:27.2]}
19... Bb4 {[%clk 0:00:08.6]} 20. Qc2 {[%clk 0:01:20.8]} 20... Ne1 {[%clk
0:00:09.8]} 21. Rxe1 {[%clk 0:01:10.3]} 21... Bxe1 {[%clk 0:00:11.7]} 22. Nc3
{[%clk 0:01:08.3]} 22... Bxf2 {[%clk 0:00:07.9]} 23. Rxc8 {[%clk 0:00:56.3]}
23... Rxc8 {[%clk 0:00:07.8]} 24. Nxb5 {[%clk 0:00:51.4]} 24... Ng4+ {[%clk
0:00:04.4]} 25. Kh1 {[%clk 0:00:51.9]} 25... Bxg3 {[%clk 0:00:05.7]} 26. Kg1
{[%clk 0:00:40.1]} 26... Nf2 {[%clk 0:00:03.6]} 27. Qxf2 {[%clk 0:00:39.2]}
27... Bxf2+ {[%clk 0:00:04.4]} 28. Kxf2 {[%clk 0:00:41.1]} 28... Qd1 {[%clk
0:00:04.4]} 29. Nc3 {[%clk 0:00:40.8]} 29... Qxc1 {[%clk 0:00:05.6]} 0-1

[Event "*** Titled Tuesday Blitz"]
[Site "Chess.com"]
[Date "2019.05.07"]
[Round "1"]
[White "Gergo85"]
[Black "Satscho"]
[Result "1-0"]
[WhiteElo "2625"]
[BlackElo "2303"]
[TimeControl "180+2"]
[EndTime "13:07:33 PDT"]
[Termination "Gergo85 won by resignation"]

1. Nf3 {[%clk 0:03:00.7]} 1... Nf6 {[%clk 0:02:50.9]} 2. g3 {[%clk 0:03:02]}
2... g6 {[%clk 0:02:49]} 3. Bg2 {[%clk 0:03:03.9]} 3... Bg7 {[%clk 0:02:48]} 4.
O-O {[%clk 0:03:05.8]} 4... O-O {[%clk 0:02:47.1]} 5. b3 {[%clk 0:03:07.4]} 5...
d6 {[%clk 0:02:47.1]} 6. Bb2 {[%clk 0:03:08.9]} 6... e5 {[%clk 0:02:46]} 7. d4
{[%clk 0:03:06.3]} 7... Nc6 {[%clk 0:02:41]} 8. e3 {[%clk 0:02:56.5]} 8... Re8
{[%clk 0:02:35.9]} 9. c4 {[%clk 0:02:54.1]} 9... e4 {[%clk 0:02:27.6]} 10. Nfd2
{[%clk 0:02:54.9]} 10... Bf5 {[%clk 0:02:29]} 11. Nc3 {[%clk 0:02:46.3]} 11...
Qd7 {[%clk 0:02:21.2]} 12. a3 {[%clk 0:02:43.3]} 12... Bh3 {[%clk 0:02:07.3]}
13. Qc2 {[%clk 0:02:41.2]} 13... Bxg2 {[%clk 0:02:04.4]} 14. Kxg2 {[%clk
0:02:43.1]} 14... Qf5 {[%clk 0:01:48]} 15. h3 {[%clk 0:02:41.9]} 15... h5 {[%clk
0:01:48.1]} 16. Kh2 {[%clk 0:02:34.8]} 16... g5 {[%clk 0:01:28]} 17. f3 {[%clk
0:02:29.2]} 17... Bh6 {[%clk 0:00:52.8]} 18. fxe4 {[%clk 0:02:27.5]} 18... Qg6
{[%clk 0:00:53.9]} 19. Nd5 {[%clk 0:01:57.1]} 19... Nxd5 {[%clk 0:00:38.8]} 20.
cxd5 {[%clk 0:01:59]} 20... Ne7 {[%clk 0:00:36.2]} 21. Qc3 {[%clk 0:01:28.4]}
21... Rac8 {[%clk 0:00:33.3]} 22. Rf2 {[%clk 0:01:22.4]} 22... Bg7 {[%clk
0:00:32.5]} 23. Raf1 {[%clk 0:01:20.9]} 23... Rf8 {[%clk 0:00:33.8]} 24. Qb4
{[%clk 0:01:02.4]} 24... b6 {[%clk 0:00:33.6]} 25. Qa4 {[%clk 0:01:01.7]} 25...
a5 {[%clk 0:00:33.7]} 26. Qd7 {[%clk 0:01:02.9]} 26... Rfe8 {[%clk 0:00:21.5]}
27. Rxf7 {[%clk 0:01:02.8]} 27... Qxf7 {[%clk 0:00:23.4]} 28. Rxf7 {[%clk
0:01:03]} 28... Kxf7 {[%clk 0:00:25.3]} 29. e5 {[%clk 0:00:58.1]} 29... Rcd8
{[%clk 0:00:22.2]} 30. Qe6+ {[%clk 0:00:50.8]} 30... Kf8 {[%clk 0:00:23.2]} 31.
Ne4 {[%clk 0:00:52]} 31... dxe5 {[%clk 0:00:20.6]} 32. Nxg5 {[%clk 0:00:52.7]}
1-0

[Event "*** Titled Tuesday Blitz"]
[Site "Chess.com"]
[Date "2019.05.07"]
[Round "1"]
[White "hansen"]
[Black "StoreySniper"]
[Result "1-0"]
[WhiteElo "2777"]
[BlackElo "2422"]
[TimeControl "180+2"]
[EndTime "13:07:41 PDT"]
[Termination "hansen won on time"]

1. e4 {[%clk 0:02:52.4]} 1... g6 {[%clk 0:02:58.7]} 2. d4 {[%clk 0:02:37.8]}
2... Bg7 {[%clk 0:02:58.9]} 3. Nc3 {[%clk 0:02:37.2]} 3... c5 {[%clk 0:02:59.1]}
4. dxc5 {[%clk 0:02:19.9]} 4... Bxc3+ {[%clk 0:02:58.4]} 5. bxc3 {[%clk
0:02:18.2]} 5... Nf6 {[%clk 0:02:58]} 6. Bd3 {[%clk 0:01:56]} 6... Qa5 {[%clk
0:02:56.5]} 7. Nf3 {[%clk 0:01:55.3]} 7... Qxc3+ {[%clk 0:02:53.2]} 8. Bd2
{[%clk 0:01:56.3]} 8... Qxc5 {[%clk 0:02:54.1]} 9. e5 {[%clk 0:01:58]} 9... Ng4
{[%clk 0:02:49.7]} 10. O-O {[%clk 0:01:58.1]} 10... Nxe5 {[%clk 0:02:47.3]} 11.
Nxe5 {[%clk 0:01:58.5]} 11... Qxe5 {[%clk 0:02:47.6]} 12. Re1 {[%clk 0:01:59.7]}
12... Qf6 {[%clk 0:02:46.7]} 13. Qc1 {[%clk 0:01:23.7]} 13... h6 {[%clk
0:02:36.6]} 14. Bxh6 {[%clk 0:01:16]} 14... Qh4 {[%clk 0:02:06.8]} 15. Bf4
{[%clk 0:01:11.2]} 15... Nc6 {[%clk 0:02:03.9]} 16. h3 {[%clk 0:01:02]} 16... d6
{[%clk 0:01:56.8]} 17. Bxd6 {[%clk 0:00:55.4]} 17... Bxh3 {[%clk 0:01:56.7]} 18.
Bg3 {[%clk 0:00:56.1]} 18... Qh7 {[%clk 0:01:44.1]} 19. gxh3 {[%clk 0:00:57]}
19... Qxh3 {[%clk 0:01:44.4]} 20. Be4 {[%clk 0:00:58.7]} 20... O-O-O {[%clk
0:01:25.7]} 21. Qf4 {[%clk 0:00:59.6]} 21... e5 {[%clk 0:01:23.4]} 22. Qxf7
{[%clk 0:01:00.8]} 22... Rd7 {[%clk 0:00:40.9]} 23. Qxg6 {[%clk 0:01:00.6]}
23... Nd4 {[%clk 0:00:35.8]} 24. c3 {[%clk 0:00:55.2]} 24... Ne6 {[%clk
0:00:18]} 25. Qf5 {[%clk 0:00:55.2]} 25... Qh6 {[%clk 0:00:15.7]} 26. Qxe5
{[%clk 0:00:54.4]} 26... Nc7 {[%clk 0:00:13.2]} 27. Qf5 {[%clk 0:00:34.2]} 27...
Kb8 {[%clk 0:00:08.4]} 28. Qxd7 {[%clk 0:00:34.4]} 1-0

[Event "*** Titled Tuesday Blitz"]
[Site "Chess.com"]
[Date "2019.05.07"]
[Round "1"]
[White "novocane"]
[Black "VSERGUEI"]
[Result "0-1"]
[WhiteElo "2249"]
[BlackElo "2583"]
[TimeControl "180+2"]
[EndTime "13:07:48 PDT"]
[Termination "VSERGUEI won by resignation"]

1. d4 {[%clk 0:02:59.2]} 1... d5 {[%clk 0:03:00]} 2. c4 {[%clk 0:02:59.8]} 2...
c6 {[%clk 0:03:01.2]} 3. cxd5 {[%clk 0:03:00.6]} 3... cxd5 {[%clk 0:03:03.1]} 4.
Bf4 {[%clk 0:03:02.1]} 4... Nc6 {[%clk 0:03:03.9]} 5. Nc3 {[%clk 0:03:02.9]}
5... e5 {[%clk 0:03:03.9]} 6. dxe5 {[%clk 0:02:54.9]} 6... d4 {[%clk 0:03:04.5]}
7. Ne4 {[%clk 0:02:54.8]} 7... Qa5+ {[%clk 0:03:04.6]} 8. Bd2 {[%clk 0:02:51.6]}
8... Qxe5 {[%clk 0:03:04]} 9. Ng3 {[%clk 0:02:52.8]} 9... Nf6 {[%clk 0:03:04.1]}
10. Nf3 {[%clk 0:02:53.1]} 10... Qd5 {[%clk 0:03:04.8]} 11. e3 {[%clk 0:02:48]}
11... dxe3 {[%clk 0:03:04.9]} 12. Bxe3 {[%clk 0:02:48.8]} 12... Bb4+ {[%clk
0:03:05.2]} 13. Bd2 {[%clk 0:02:49.7]} 13... O-O {[%clk 0:02:58.2]} 14. Be2
{[%clk 0:02:45.4]} 14... Rd8 {[%clk 0:02:51.2]} 15. Bxb4 {[%clk 0:02:43.1]}
15... Nxb4 {[%clk 0:02:44.7]} 16. Qxd5 {[%clk 0:02:39.9]} 16... Nfxd5 {[%clk
0:02:37.7]} 17. O-O {[%clk 0:01:45]} 17... Nf4 {[%clk 0:02:37.8]} 18. Bc4 {[%clk
0:01:34.3]} 18... Be6 {[%clk 0:02:37]} 19. Bxe6 {[%clk 0:01:34.5]} 19... Nxe6
{[%clk 0:02:37]} 20. a3 {[%clk 0:01:35.8]} 20... Nc2 {[%clk 0:02:36.9]} 21. Rac1
{[%clk 0:01:36.1]} 21... Rac8 {[%clk 0:02:32.3]} 22. h3 {[%clk 0:01:36.5]} 22...
Kf8 {[%clk 0:02:23.9]} 23. Rfd1 {[%clk 0:01:37]} 23... Rxd1+ {[%clk 0:02:20.2]}
24. Rxd1 {[%clk 0:01:38.3]} 24... Ke7 {[%clk 0:02:19.2]} 25. Ne5 {[%clk
0:01:33.5]} 25... Ncd4 {[%clk 0:02:11.1]} 26. Ne4 {[%clk 0:01:14.7]} 26... Rc2
{[%clk 0:02:02.6]} 27. Nd3 {[%clk 0:01:15.2]} 27... f5 {[%clk 0:01:53.4]} 28.
Nc3 {[%clk 0:01:12]} 28... Ne2+ {[%clk 0:01:43.7]} 29. Nxe2 {[%clk 0:01:12.5]}
29... Rxe2 {[%clk 0:01:44.5]} 30. Kf1 {[%clk 0:01:11.1]} 30... Rc2 {[%clk
0:01:44]} 31. f4 {[%clk 0:01:05.3]} 31... h6 {[%clk 0:01:36.3]} 32. g3 {[%clk
0:01:03.9]} 32... g5 {[%clk 0:01:36.2]} 33. Re1 {[%clk 0:00:59.8]} 33... Kf6
{[%clk 0:01:33.3]} 34. fxg5+ {[%clk 0:00:59.2]} 34... hxg5 {[%clk 0:01:32]} 35.
b4 {[%clk 0:00:56.6]} 35... Rc3 {[%clk 0:01:27.2]} 36. Ne5 {[%clk 0:00:44.7]}
36... Rxg3 {[%clk 0:01:18.5]} 37. Nd7+ {[%clk 0:00:45.8]} 37... Kf7 {[%clk
0:01:18.5]} 38. Ne5+ {[%clk 0:00:46.3]} 38... Kg7 {[%clk 0:01:18.4]} 39. Nc4
{[%clk 0:00:43.3]} 39... Kf6 {[%clk 0:01:15.6]} 40. Nd6 {[%clk 0:00:43.6]} 40...
Rxh3 {[%clk 0:01:14.4]} 41. Kg2 {[%clk 0:00:40]} 41... Nf4+ {[%clk 0:01:13.1]}
42. Kg1 {[%clk 0:00:41.4]} 42... Rg3+ {[%clk 0:01:12.8]} 43. Kh2 {[%clk
0:00:42.3]} 43... Rxa3 {[%clk 0:01:12.7]} 44. Nxb7 {[%clk 0:00:43.6]} 44... g4
{[%clk 0:01:12.3]} 45. Re8 {[%clk 0:00:43.7]} 45... g3+ {[%clk 0:01:13]} 0-1

[Event "*** Titled Tuesday Blitz"]
[Site "Chess.com"]
[Date "2019.05.07"]
[Round "1"]
[White "nonscitis"]
[Black "WeAintSurePal"]
[Result "1-0"]
[WhiteElo "2562"]
[BlackElo "2229"]
[TimeControl "180+2"]
[EndTime "13:07:52 PDT"]
[Termination "nonscitis won by resignation"]

1. d4 {[%clk 0:03:01.5]} 1... d5 {[%clk 0:03:00]} 2. c4 {[%clk 0:03:00.2]} 2...
e6 {[%clk 0:03:01.1]} 3. Nc3 {[%clk 0:02:59.8]} 3... Be7 {[%clk 0:03:00.5]} 4.
Nf3 {[%clk 0:02:56.7]} 4... Nf6 {[%clk 0:03:01]} 5. Bf4 {[%clk 0:02:51.5]} 5...
O-O {[%clk 0:03:00.1]} 6. e3 {[%clk 0:02:48.3]} 6... c5 {[%clk 0:02:40.6]} 7.
Rc1 {[%clk 0:02:30.8]} 7... Nc6 {[%clk 0:02:39.5]} 8. cxd5 {[%clk 0:02:29.6]}
8... Nxd5 {[%clk 0:02:38.8]} 9. Nxd5 {[%clk 0:02:30.2]} 9... Qxd5 {[%clk
0:02:34.1]} 10. Bc4 {[%clk 0:02:14.7]} 10... Qd7 {[%clk 0:02:29.4]} 11. O-O
{[%clk 0:01:51.4]} 11... cxd4 {[%clk 0:02:29.1]} 12. exd4 {[%clk 0:01:47.6]}
12... a6 {[%clk 0:02:28.9]} 13. d5 {[%clk 0:01:14.6]} 13... exd5 {[%clk
0:02:29.2]} 14. Bxd5 {[%clk 0:01:14.2]} 14... Bf6 {[%clk 0:02:30]} 15. Bxc6
{[%clk 0:01:07.8]} 15... bxc6 {[%clk 0:02:28.8]} 16. Be5 {[%clk 0:01:07.8]}
16... Qe7 {[%clk 0:02:19.7]} 17. Bd6 {[%clk 0:01:06.8]} 17... Qe8 {[%clk
0:02:15.6]} 18. Bxf8 {[%clk 0:01:05.2]} 18... Qxf8 {[%clk 0:02:17.1]} 19. Rxc6
{[%clk 0:01:02.1]} 19... Bb7 {[%clk 0:02:17.4]} 20. Rc2 {[%clk 0:00:50.5]} 20...
Rd8 {[%clk 0:02:17.2]} 21. Rd2 {[%clk 0:00:51.4]} 21... Re8 {[%clk 0:01:58.6]}
22. Re1 {[%clk 0:00:51.4]} 22... Rc8 {[%clk 0:01:54.2]} 23. Nd4 {[%clk 0:00:46]}
23... g6 {[%clk 0:01:51.8]} 24. a3 {[%clk 0:00:43.2]} 24... Qh6 {[%clk
0:01:50.6]} 25. b4 {[%clk 0:00:35]} 25... Qg5 {[%clk 0:01:48]} 26. g3 {[%clk
0:00:31.3]} 26... Qd5 {[%clk 0:01:41.4]} 27. f3 {[%clk 0:00:32.2]} 27... Bg5
{[%clk 0:01:30.6]} 28. Rd3 {[%clk 0:00:27.7]} 28... Rd8 {[%clk 0:01:30.2]} 29.
Qe2 {[%clk 0:00:21.5]} 29... Bf6 {[%clk 0:01:24.5]} 30. Red1 {[%clk 0:00:22.7]}
30... Qh5 {[%clk 0:01:24.8]} 31. g4 {[%clk 0:00:21.6]} 31... Qh4 {[%clk
0:01:16.4]} 32. Nb3 {[%clk 0:00:22]} 32... Rc8 {[%clk 0:01:14.1]} 33. Nc5 {[%clk
0:00:22.7]} 33... Bc6 {[%clk 0:01:12.5]} 34. Qf2 {[%clk 0:00:23.9]} 34... Qg5
{[%clk 0:01:10.2]} 35. Rd6 {[%clk 0:00:24.4]} 35... Ba8 {[%clk 0:01:06.5]} 36.
h4 {[%clk 0:00:23.3]} 36... Qe5 {[%clk 0:00:58.9]} 37. Nd7 {[%clk 0:00:22.3]}
37... Be7 {[%clk 0:00:50]} 38. Nxe5 {[%clk 0:00:22.8]} 1-0